fUST/lending_fUST_20240909
["ID","MTS","AMOUNT","RATE_DAILY","PERIOD"]
[337573729,1725831043853,-500.0,0.00049315,120]
[337573730,1725831043863,-511.87454157,0.00049315,120]
[337573731,1725831043872,-500.0,0.00049315,120]
[337573732,1725831043881,-1396.39,0.00049315,120]
[337573733,1725831043891,-500.0,0.00049315,120]
[337573734,1725831043901,-1867.5,0.00049315,120]
[337573735,1725831043910,-500.0,0.00049315,120]
[337573736,1725831043919,-500.0,0.00049315,120]
[337573737,1725831043928,-500.0,0.00049315,120]
[337573738,1725831043937,-665.27,0.00049315,120]
[337573739,1725831043947,-500.0,0.00049315,120]
[337573740,1725831043957,-151.0,0.00049315,120]
[337573741,1725831043966,-151.0,0.00049315,120]
[337573742,1725831043975,-819.56,0.00049315,120]
[337573743,1725831043985,-151.0,0.00049315,120]
[337573744,1725831043994,-151.0,0.00049315,120]
[337573745,1725831044004,-500.0,0.00049315,2]
[337573746,1725831044014,-500.0,0.00049315,120]
[337573747,1725831044023,-500.0,0.00049315,120]
[337573748,1725831044034,-500.0,0.00049315,120]
[337573749,1725831044045,-500.0,0.00049315,120]
[337573750,1725831044055,-500.0,0.00049315,120]
[337573751,1725831044066,-500.0,0.00049315,120]
[337573752,1725831044075,-500.0,0.00049315,120]
[337573753,1725831044085,-500.0,0.00049315,10]
[337573754,1725831044095,-151.0,0.00049315,120]
[337573755,1725831044105,-500.0,0.00049315,120]
[337573756,1725831044115,-198.15034643,0.00049315,120]
[337573757,1725831044124,-500.0,0.00049315,120]
[337573758,1725831044133,-500.0,0.00049315,120]
[337573759,1725831044143,-500.0,0.00049315,120]
[337573760,1725831044152,-500.0,0.00049315,120]
[337573761,1725831044164,-500.0,0.00049315,120]
[337573762,1725831044173,-339.18703988,0.00049315,120]
[337573763,1725831044183,-500.0,0.00049315,120]
[337573764,1725831044192,-500.0,0.00049315,120]
[337573765,1725831044202,-709.41,0.00049315,120]
[337573766,1725831044212,-1000.0,0.00049315,60]
[337573767,1725831044221,-1284.45,0.00049315,120]
[337573768,1725831044230,-589.56,0.00049315,120]
[337573769,1725831044239,-500.0,0.00049315,120]
[337573770,1725831044248,-460.07674919,0.00049315,120]
[337573771,1725831044258,-500.0,0.00049315,120]
[337573772,1725831044269,-1234.76,0.00049315,120]
[337573773,1725831044279,-811.01,0.00049315,120]
[337573774,1725831044288,-500.0,0.00049315,120]
[337573775,1725831044298,-500.0,0.00049315,120]
[337573776,1725831044307,-622.32,0.00049315,120]
[337573777,1725831044317,-151.0,0.00049315,120]
[337573778,1725831044326,-154.412248,0.00049315,120]
[337573779,1725831044335,-500.0,0.00049315,120]
[337573780,1725831044344,-1646.4,0.00049315,120]
[337573781,1725831044354,-539.32,0.00049315,120]
[337573782,1725831044370,-500.0,0.00049315,120]
[337573783,1725831044381,-500.0,0.00049315,120]
[337573784,1725831044391,-500.0,0.00049315,120]
[337573785,1725831044400,-224.27148364,0.00049315,120]
[337573786,1725831044409,-500.0,0.00049315,120]
[337573787,1725831044418,-2221.64,0.00049315,120]
[337573788,1725831044427,-500.0,0.00049315,120]
[337573789,1725831044436,-500.0,0.00049315,120]
[337573790,1725831044445,-500.0,0.00049315,120]
[337573791,1725831044454,-500.0,0.00049315,120]
[337573792,1725831044464,-592.08,0.00049315,120]
[337573793,1725831044474,-1841.83,0.00049315,120]
[337573794,1725831044483,-151.0,0.00049315,30]
[337573795,1725831044493,-500.0,0.00049315,120]
[337573796,1725831044502,-595.2047911,0.00049315,120]
[337573797,1725831044511,-610.74114365,0.00049315,120]
[337573798,1725831044521,-151.0,0.00049315,120]
[337573799,1725831044530,-411.73552016,0.00049315,120]
[337573800,1725831044539,-151.0,0.00049315,120]
[337573801,1725831044549,-500.0,0.00049315,120]
[337573802,1725831044559,-500.0,0.00049315,120]
[337573803,1725831044572,-500.0,0.00049315,2]
[337573804,1725831044582,-375.75822535,0.00049315,120]
[337573805,1725831044593,-728.31,0.00049315,120]
[337573806,1725831044603,-843.05,0.00049315,120]
[337573807,1725831044615,-500.0,0.00049315,120]
[337573808,1725831044624,-500.0,0.00049315,120]
[337573809,1725831044634,-1216.77,0.00049315,120]
[337573810,1725831044645,-709.11,0.00049315,120]
[337573811,1725831044655,-500.0,0.00049315,120]
[337573812,1725831044665,-500.0,0.00049315,120]
[337573813,1725831044675,-500.0,0.00049315,120]
[337573814,1725831044684,-500.0,0.00049315,120]
[337573815,1725831044694,-500.0,0.00049315,120]
[337573816,1725831044703,-500.0,0.00049315,120]
[337573817,1725831044712,-500.0,0.00049315,120]
[337573818,1725831044723,-500.0,0.00049315,120]
[337573819,1725831044733,-500.0,0.00049315,120]
[337573820,1725831044743,-500.0,0.00049315,120]
[337573821,1725831044752,-246.304356,0.00049315,120]
[337573822,1725831044762,-500.0,0.00049315,120]
[337573823,1725831044771,-1185.88,0.00049315,120]
[337573824,1725831044780,-246.304356,0.00049315,120]
[337573825,1725831044790,-1881.25,0.00049315,120]
[337573826,1725831044799,-246.304356,0.00049315,120]
[337573827,1725831044809,-246.304356,0.00049315,120]
[337573828,1725831044819,-500.0,0.00049315,120]
[337573829,1725831044830,-500.0,0.00049315,120]
[337573830,1725831044841,-500.0,0.00049315,120]
[337573831,1725831044852,-500.0,0.00049315,120]
[337573832,1725831044864,-500.0,0.00049315,120]
[337573833,1725831044874,-500.0,0.00049315,120]
[337573834,1725831044883,-500.0,0.00049315,120]
[337573835,1725831044893,-500.0,0.00049315,2]
[337573836,1725831044903,-503.76702713,0.00049315,120]
[337573837,1725831044914,-500.0,0.00049315,120]
[337573838,1725831044924,-500.0,0.00049315,120]
[337573839,1725831044933,-302.43290994,0.00049315,120]
[337573840,1725831044944,-1469.17,0.00049315,120]
[337573841,1725831044953,-500.0,0.00049315,120]
[337573842,1725831044965,-500.0,0.00049315,120]
[337573843,1725831044974,-500.0,0.00049315,120]
[337573844,1725831044983,-500.0,0.00049315,120]
[337573845,1725831044993,-500.0,0.00049315,120]
[337573846,1725831045003,-500.0,0.00049315,120]
[337573847,1725831045012,-620.57864153,0.00049315,120]
[337573848,1725831045022,-500.0,0.00049315,120]
[337573849,1725831045032,-500.0,0.00049315,120]
[337573850,1725831045042,-500.0,0.00049315,120]
[337573851,1725831045052,-609.28,0.00049315,120]
[337573852,1725831045062,-506.61787541,0.00049315,120]
[337573853,1725831045072,-500.0,0.00049315,120]
[337573854,1725831045081,-506.68,0.00049315,120]
[337573855,1725831045091,-500.0,0.00049315,120]
[337573856,1725831045101,-500.0,0.00049315,120]
[337573857,1725831045111,-500.0,0.00049315,120]
[337573858,1725831045121,-524.04,0.00049315,120]
[337573859,1725831045132,-1270.01,0.00049315,120]
[337573860,1725831045142,-151.0,0.00049315,120]
[337573861,1725831045152,-151.0,0.00049315,120]
[337573862,1725831045165,-500.0,0.00049315,120]
[337573863,1725831045175,-151.0,0.00049315,120]
[337573864,1725831045184,-151.0,0.00049315,120]
[337573865,1725831045193,-527.45356,0.00049315,120]
[337573866,1725831045203,-1354.58,0.00049315,120]
[337573867,1725831045213,-151.0,0.00049315,120]
[337573868,1725831045222,-151.0,0.00049315,120]
[337573869,1725831045231,-500.0,0.00049315,120]
[337573870,1725831045240,-500.0,0.00049315,120]
[337573871,1725831045250,-500.0,0.00049315,120]
[337573872,1725831045260,-500.0,0.00049315,120]
[337573873,1725831045270,-558.29,0.00049315,120]
[337573874,1725831045279,-500.0,0.00049315,120]
[337573875,1725831045289,-500.0,0.00049315,120]
[337573876,1725831045298,-612.94,0.00049315,120]
[337573877,1725831045308,-500.0,0.00049315,120]
[337573878,1725831045317,-500.0,0.00049315,120]
[337573879,1725831045329,-151.0,0.00049315,120]
[337573880,1725831045338,-151.0,0.00049315,120]
[337573881,1725831045347,-500.0,0.00049315,120]
[337573882,1725831045357,-500.0,0.00049315,120]
[337573883,1725831045368,-500.0,0.00049315,120]
[337573884,1725831045378,-507.10316306,0.00049315,120]
[337573885,1725831045387,-500.0,0.00049315,120]
[337573886,1725831045397,-500.0,0.00049315,120]
[337573887,1725831045407,-500.0,0.00049315,120]
[337573888,1725831045417,-500.0,0.00049315,120]
[337573889,1725831045427,-500.0,0.00049315,120]
[337573890,1725831045436,-944.84,0.00049315,120]
[337573891,1725831045446,-500.0,0.00049315,120]
[337573892,1725831045457,-1018.05,0.00049315,120]
[337573893,1725831045470,-500.0,0.00049315,120]
[337573894,1725831045479,-500.0,0.00049315,120]
[337573895,1725831045489,-500.0,0.00049315,120]
[337573896,1725831045499,-516.46904769,0.00049315,120]
[337573897,1725831045509,-507.6496661,0.00049315,120]
[337573898,1725831045519,-500.0,0.00049315,120]
[337573899,1725831045531,-500.0,0.00049315,120]
[337573900,1725831045541,-500.0,0.00049315,120]
[337573902,1725831045551,-642.98,0.00049315,120]
[337573904,1725831045561,-500.0,0.00049315,120]
[337573906,1725831045574,-151.0,0.00049315,120]
[337573908,1725831045584,-725.37,0.00049315,120]
[337573910,1725831045594,-500.0,0.00049315,120]
[337573912,1725831045604,-500.0,0.00049315,120]
[337573914,1725831045614,-1586.07,0.00049315,120]
[337573916,1725831045624,-273.25808367,0.00049315,120]
[337573918,1725831045633,-500.0,0.00049315,120]
[337573920,1725831045645,-500.0,0.00049315,120]
[337573922,1725831045657,-500.0,0.00049315,120]
[337573923,1725831045666,-500.0,0.00049315,120]
[337573924,1725831045676,-500.0,0.00049315,120]
[337573926,1725831045685,-500.0,0.00049315,120]
[337573927,1725831045695,-500.0,0.00049315,120]
[337573929,1725831045704,-4115.93,0.00049315,120]
[337573931,1725831045714,-500.0,0.00049315,120]
[337573932,1725831045723,-547.98,0.00049315,120]
[337573934,1725831045733,-665.09,0.00049315,120]
[337573936,1725831045743,-500.0,0.00049315,120]
[337573937,1725831045752,-500.0,0.00049315,120]
[337573939,1725831045762,-500.0,0.00049315,120]
[337573941,1725831045771,-500.0,0.00049315,120]
[337573942,1725831045781,-550.08989126,0.00049315,120]
[337573944,1725831045790,-544.07,0.00049315,120]
[337573946,1725831045800,-151.0,0.00049315,2]
[337573947,1725831045810,-1739.47,0.00049315,120]
[337573949,1725831045819,-500.0,0.00049315,120]
[337573951,1725831045829,-500.0,0.00049315,120]
[337573952,1725831045838,-500.0,0.00049315,120]
[337573954,1725831045848,-2069.38,0.00049315,120]
[337573956,1725831045857,-151.0,0.00049315,120]
[337573958,1725831045872,-500.0,0.00049315,120]
[337573959,1725831045882,-500.0,0.00049315,120]
[337573961,1725831045892,-500.0,0.00049315,120]
[337573962,1725831045902,-500.0,0.00049315,120]
[337573964,1725831045911,-500.0,0.00049315,120]
[337573965,1725831045920,-500.0,0.00049315,120]
[337573967,1725831045930,-151.0,0.00049315,120]
[337573969,1725831045939,-500.0,0.00049315,120]
[337573970,1725831045949,-151.0,0.00049315,120]
[337573972,1725831045958,-500.0,0.00049315,120]
[337573974,1725831045967,-500.0,0.00049315,120]
[337573975,1725831045977,-1722.06,0.00049315,120]
[337573977,1725831045986,-500.0,0.00049315,120]
[337573979,1725831045995,-500.0,0.00049315,120]
[337573980,1725831046005,-316.267103,0.00049315,120]
[337573982,1725831046014,-316.267103,0.00049315,120]
[337573984,1725831046023,-500.0,0.00049315,120]
[337573985,1725831046032,-500.0,0.00049315,120]
[337573987,1725831046043,-500.0,0.00049315,120]
[337573989,1725831046052,-500.0,0.00049315,120]
[337573990,1725831046062,-500.0,0.00049315,120]
[337573992,1725831046071,-316.267103,0.00049315,120]
[337573994,1725831046080,-316.267103,0.00049315,120]
[337573995,1725831046090,-500.0,0.00049315,120]
[337573997,1725831046099,-500.0,0.00049315,120]
[337573999,1725831046108,-500.0,0.00049315,120]
[337574000,1725831046118,-500.0,0.00049315,120]
[337574002,1725831046128,-500.0,0.00049315,120]
[337574004,1725831046137,-500.0,0.00049315,120]
[337574005,1725831046146,-500.0,0.00049315,120]
[337574007,1725831046158,-500.0,0.00049315,120]
[337574009,1725831046167,-617.72,0.00049315,30]
[337574011,1725831046178,-500.0,0.00049315,120]
[337574012,1725831046187,-500.19592283,0.00049315,120]
[337574014,1725831046196,-500.0,0.00049315,120]
[337574015,1725831046205,-500.0,0.00049315,120]
[337574017,1725831046215,-151.0,0.00049315,120]
[337574019,1725831046224,-151.0,0.00049315,120]
[337574021,1725831046233,-151.0,0.00049315,120]
[337574022,1725831046245,-500.0,0.00049315,120]
[337574023,1725831046254,-151.0,0.00049315,120]
[337574024,1725831046263,-421.55068524,0.00049315,120]
[337574025,1725831046272,-500.0,0.00049315,120]
[337574027,1725831046281,-607.59,0.00049315,120]
[337574028,1725831046291,-500.0,0.00049315,120]
[337574030,1725831046299,-151.0,0.00049315,30]
[337574032,1725831046309,-151.0,0.00049315,30]
[337574033,1725831046318,-513.54236205,0.00049315,120]
[337574035,1725831046328,-1642.91,0.00049315,120]
[337574037,1725831046337,-500.0,0.00049315,120]
[337574038,1725831046346,-500.0,0.00049315,120]
[337574039,1725831046355,-2355.78,0.00049315,120]
[337574040,1725831046364,-151.0,0.00049315,30]
[337574041,1725831046373,-151.0,0.00049315,30]
[337574042,1725831046382,-500.0,0.00049315,120]
[337574043,1725831046391,-151.0,0.00049315,120]
[337574044,1725831046400,-151.0,0.00049315,120]
[337574045,1725831046409,-519.29,0.00049315,120]
[337574046,1725831046418,-500.0,0.00049315,120]
[337574047,1725831046427,-500.0,0.00049315,120]
[337574048,1725831046436,-595.2,0.00049315,120]
[337574049,1725831046447,-1200.96,0.00049315,120]
[337574050,1725831046456,-500.0,0.00049315,120]
[337574051,1725831046466,-500.0,0.00049315,120]
[337574052,1725831046475,-500.0,0.00049315,120]
[337574053,1725831046484,-500.0,0.00049315,120]
[337574054,1725831046494,-500.0,0.00049315,120]
[337574055,1725831046503,-500.0,0.00049315,120]
[337574056,1725831046512,-500.0,0.00049315,120]
[337574057,1725831046521,-511.92,0.00049315,120]
[337574058,1725831046531,-500.0,0.00049315,120]
[337574059,1725831046540,-500.0,0.00049315,120]
[337574060,1725831046550,-500.0,0.00049315,120]
[337574061,1725831046559,-647.79,0.00049315,120]
[337574062,1725831046574,-840.88,0.00049315,120]
[337574063,1725831046584,-164.15737138,0.00049315,120]
[337574064,1725831046595,-500.0,0.00049315,120]
[337574065,1725831046606,-2968.26,0.00049315,120]
[337574066,1725831046617,-500.0,0.00049315,120]
[337574067,1725831046626,-500.0,0.00049315,120]
[337574068,1725831046637,-500.0,0.00049315,120]
[337574069,1725831046646,-410.062294,0.00049315,120]
[337574070,1725831046655,-410.062294,0.00049315,120]
[337574071,1725831046665,-551.0,0.00049315,120]
[337574072,1725831046673,-679.68,0.00049315,120]
[337574073,1725831046685,-500.0,0.00049315,120]
[337574074,1725831046695,-410.062294,0.00049315,120]
[337574075,1725831046704,-500.0,0.00049315,120]
[337574076,1725831046712,-410.062294,0.00049315,120]
[337574077,1725831046721,-1588.95,0.00049315,120]
[337574078,1725831046731,-500.0,0.00049315,120]
[337574079,1725831046740,-500.0,0.00049315,120]
[337574080,1725831046749,-271.16798836,0.00049315,120]
[337574081,1725831046758,-32034.17,0.00049315,120]
[337574082,1725831046767,-500.0,0.00049315,120]
[337574083,1725831046776,-500.0,0.00049315,120]
[337574084,1725831046786,-577.84,0.00049315,120]
[337574085,1725831046795,-864.07,0.00049315,120]
[337574086,1725831046804,-500.0,0.00049315,120]
[337574087,1725831046814,-500.0,0.00049315,120]
[337574088,1725831046824,-500.0,0.00049315,120]
[337574089,1725831046834,-553.94,0.00049315,120]
[337574090,1725831046845,-25515.23,0.00049315,120]
[337574091,1725831046855,-622.01,0.00049315,120]
[337574092,1725831046864,-151.0,0.00049315,120]
[337574093,1725831046874,-500.0,0.00049315,120]
[337574094,1725831046883,-541.26,0.00049315,120]
[337574095,1725831046893,-500.0,0.00049315,120]
[337574096,1725831046903,-500.0,0.00049315,120]
[337574097,1725831046914,-500.0,0.00049315,120]
[337574098,1725831046924,-500.0,0.00049315,120]
[337574099,1725831046934,-1624.05,0.00049315,120]
[337574100,1725831046946,-500.0,0.00049315,120]
[337574101,1725831046956,-500.0,0.00049315,120]
[337574102,1725831046965,-500.0,0.00049315,120]
[337574103,1725831046974,-500.0,0.00049315,120]
[337574104,1725831046983,-199.2,0.00049315,120]
[337574105,1725831046992,-1973.4,0.00049315,120]
[337574106,1725831047002,-500.0,0.00049315,120]
[337574107,1725831047011,-1534.17,0.00049315,120]
[337574108,1725831047020,-1948.84,0.00049315,21]
[337574109,1725831047030,-500.0,0.00049315,120]
[337574110,1725831047039,-1573.6,0.00049315,120]
[337574111,1725831047048,-281.80747517,0.00049315,120]
[337574112,1725831049892,-218.19252483,0.00049315,120]
[337574113,1725831049902,-500.0,0.00049315,120]
[337574114,1725831049911,-500.0,0.00049315,120]
[337574115,1725831049921,-500.0,0.00049315,120]
[337574116,1725831049931,-500.0,0.00049315,120]
[337574117,1725831049940,-500.0,0.00049315,120]
[337574118,1725831049951,-500.0,0.00049315,120]
[337574119,1725831049960,-500.0,0.00049315,120]
[337574120,1725831049970,-500.0,0.00049315,120]
[337574121,1725831049979,-2035.64,0.00049315,120]
[337574122,1725831049988,-2374.6,0.00049315,120]
[337574123,1725831049997,-500.0,0.00049315,120]
[337574124,1725831050006,-151.0,0.00049315,120]
[337574125,1725831050015,-503.52492454,0.00049315,120]
[337574126,1725831050025,-151.0,0.00049315,120]
[337574127,1725831050034,-500.0,0.00049315,120]
[337574128,1725831050043,-500.0,0.00049315,120]
[337574129,1725831050053,-500.0,0.00049315,120]
[337574130,1725831050062,-500.0,0.00049315,120]
[337574131,1725831050070,-376.597937,0.00049315,120]
[337574132,1725831050079,-500.0,0.00049315,120]
[337574133,1725831050088,-376.597937,0.00049315,120]
[337574134,1725831050098,-1853.78,0.00049315,120]
[337574135,1725831050108,-3631.77,0.00049315,120]
[337574136,1725831050119,-219.21709981,0.00049315,120]
[337574137,1725831050129,-962.38,0.00049315,120]
[337574138,1725831050138,-500.0,0.00049315,120]
[337574139,1725831050147,-3062.45,0.00049315,120]
[337574140,1725831050158,-500.0,0.00049315,120]
[337574141,1725831050166,-500.0,0.00049315,120]
[337574142,1725831050176,-500.0,0.00049315,120]
[337574143,1725831050185,-1045.27,0.00049315,120]
[337574144,1725831050194,-840.66,0.00049315,120]
[337574145,1725831050204,-376.597937,0.00049315,120]
[337574146,1725831050214,-376.597937,0.00049315,120]
[337574147,1725831050224,-500.0,0.00049315,120]
[337574148,1725831050234,-500.0,0.00049315,120]
[337574149,1725831050245,-502.14,0.00049315,120]
[337574150,1725831050254,-4623.63,0.00049315,120]
[337574151,1725831050264,-500.0,0.00049315,120]
[337574152,1725831050273,-681.21,0.00049315,120]
[337574153,1725831050284,-464.94776295,0.00049315,120]
[337574154,1725831050294,-1722.19,0.00049315,120]
[337574155,1725831050304,-500.0,0.00049315,120]
[337574156,1725831050315,-500.0,0.00049315,120]
[337574157,1725831050325,-500.0,0.00049315,120]
[337574158,1725831050334,-622.38,0.00049315,120]
[337574159,1725831050343,-2191.0,0.00049315,120]
[337574160,1725831050352,-511.77137534,0.00049315,120]
[337574161,1725831050361,-500.0,0.00049315,120]
[337574162,1725831050518,-207.689617,0.00049315,120]
[337574163,1725831050528,-207.689617,0.00049315,120]
[337574164,1725831050537,-917.6,0.00049315,120]
[337574165,1725831050547,-207.689617,0.00049315,120]
[337574166,1725831050557,-207.689617,0.00049315,120]
[337574167,1725831050570,-682.88,0.00049315,120]
[337574168,1725831050579,-500.0,0.00049315,120]
[337574169,1725831050589,-503.82799804,0.00049315,120]
[337574170,1725831050599,-1060.28,0.00049315,120]
[337574171,1725831050610,-500.0,0.00049315,120]
[337574172,1725831050619,-500.0,0.00049315,120]
[337574173,1725831050628,-500.0,0.00049315,120]
[337574174,1725831050638,-500.0,0.00049315,120]
[337574175,1725831050651,-1175.82,0.00049315,120]
[337574176,1725831050659,-500.0,0.00049315,120]
[337574177,1725831050668,-500.0,0.00049315,120]
[337574178,1725831050677,-500.0,0.00049315,120]
[337574179,1725831050686,-500.0,0.00049315,120]
[337574180,1725831050695,-500.0,0.00049315,120]
[337574181,1725831050705,-951.76,0.00049315,120]
[337574182,1725831050715,-536.41301738,0.00049315,120]
[337574183,1725831050724,-151.0,0.00049315,120]
[337574184,1725831050734,-151.0,0.00049315,120]
[337574185,1725831050744,-500.0,0.00049315,120]
[337574186,1725831050754,-611.97,0.00049315,120]
[337574187,1725831050763,-151.0,0.00049315,120]
[337574188,1725831050774,-151.0,0.00049315,120]
[337574189,1725831050785,-500.0,0.00049315,120]
[337574190,1725831050797,-500.0,0.00049315,120]
[337574191,1725831050809,-500.0,0.00049315,120]
[337574192,1725831050819,-731.12,0.00049315,120]
[337574193,1725831050830,-500.0,0.00049315,120]
[337574194,1725831050840,-948.79,0.00049315,120]
[337574195,1725831050850,-151.0,0.00049315,120]
[337574196,1725831050860,-151.0,0.00049315,120]
[337574197,1725831050869,-500.0,0.00049315,120]
[337574198,1725831050878,-500.0,0.00049315,120]
[337574199,1725831050888,-500.0,0.00049315,120]
[337574200,1725831050897,-3036.15,0.00049315,120]
[337574201,1725831050907,-683.88,0.00049315,120]
[337574202,1725831050916,-500.0,0.00049315,120]
[337574203,1725831050925,-500.0,0.00049315,120]
[337574204,1725831050934,-799.25,0.00049315,120]
[337574205,1725831050943,-1094.17,0.00049315,120]
[337574206,1725831050953,-500.0,0.00049315,120]
[337574207,1725831050963,-500.0,0.00049315,120]
[337574208,1725831050972,-151.0,0.00049315,120]
[337574209,1725831050982,-500.0,0.00049315,120]
[337574210,1725831050990,-500.0,0.00049315,120]
[337574211,1725831050999,-500.0,0.00049315,120]
[337574212,1725831051008,-202.29003797,0.00049315,120]
[337574213,1725831051017,-646.56,0.00049315,120]
[337574214,1725831051026,-500.0,0.00049315,120]
[337574215,1725831051036,-500.0,0.00049315,120]
[337574216,1725831051045,-500.0,0.00049315,120]
[337574217,1725831051054,-500.0,0.00049315,120]
[337574218,1725831051063,-151.0,0.00049315,120]
[337574219,1725831051072,-5393.05,0.00049315,120]
[337574220,1725831051082,-999.0,0.00049315,120]
[337574221,1725831051091,-500.0,0.00049315,120]
[337574222,1725831051100,-334.20955014,0.00049315,120]
[337574223,1725831051108,-1046.61,0.00049315,120]
[337574224,1725831051118,-500.0,0.00049315,120]
[337574225,1725831051127,-1592.5,0.00049315,120]
[337574226,1725831051136,-524.12,0.00049315,120]
[337574227,1725831051145,-542.19,0.00049315,120]
[337574228,1725831051154,-972.66,0.00049315,120]
[337574229,1725831051163,-507.51276403,0.00049315,120]
[337574230,1725831051172,-500.0,0.00049315,7]
[337574231,1725831051181,-500.0,0.00049315,120]
[337574232,1725831051190,-794.89,0.00049315,120]
[337574233,1725831051199,-500.0,0.00049315,120]
[337574234,1725831051208,-3919.49,0.00049315,120]
[337574235,1725831051217,-1184.7,0.00049315,120]
[337574236,1725831051226,-500.0,0.00049315,120]
[337574237,1725831051235,-506.17,0.00049315,120]
[337574238,1725831051244,-500.0,0.00049315,120]
[337574239,1725831051254,-293.636479,0.00049315,120]
[337574240,1725831051264,-151.0,0.00049315,120]
[337574241,1725831051273,-590.24,0.00049315,120]
[337574242,1725831051283,-500.0,0.00049315,120]
[337574243,1725831051292,-1182.1,0.00049315,120]
[337574244,1725831051301,-293.636479,0.00049315,120]
[337574245,1725831051310,-500.0,0.00049315,120]
[337574246,1725831051319,-1267.92,0.00049315,120]
[337574247,1725831051328,-500.0,0.00049315,120]
[337574248,1725831051337,-500.0,0.00049315,30]
[337574249,1725831051346,-500.0,0.00049315,120]
[337574250,1725831051355,-500.0,0.00049315,120]
[337574251,1725831051366,-664.07,0.00049315,7]
[337574252,1725831051376,-3463.57,0.00049315,120]
[337574253,1725831051387,-175.549514,0.00049315,120]
[337574254,1725831051398,-1494.59,0.00049315,120]
[337574255,1725831051407,-175.549514,0.00049315,120]
[337574256,1725831051417,-500.0,0.00049315,120]
[337574257,1725831051428,-1885.09,0.00049315,120]
[337574258,1725831051440,-500.0,0.00049315,120]
[337574259,1725831051450,-698.55,0.00049315,120]
[337574260,1725831051460,-500.0,0.00049315,120]
[337574261,1725831051469,-388.08264696,0.00049315,120]
[337574262,1725831051479,-840.85,0.00049315,120]
[337574263,1725831051489,-500.0,0.00049315,120]
[337574264,1725831051498,-647.71,0.00049315,120]
[337574265,1725831051507,-500.0,0.00049315,120]
[337574266,1725831051519,-1401.38,0.00049315,120]
[337574267,1725831051529,-500.0,0.00049315,120]
[337574268,1725831051540,-57405.69,0.00049315,120]
[337574269,1725831051550,-500.0,0.00049315,60]
[337574270,1725831051563,-500.0,0.00049315,120]
[337574271,1725831051575,-500.0,0.00049315,120]
[337574272,1725831051584,-1417.92,0.00049315,120]
[337574273,1725831051594,-877.16,0.00049315,120]
[337574274,1725831051603,-971.19,0.00049315,120]
[337574275,1725831051613,-876.91,0.00049315,120]
[337574276,1725831051622,-500.0,0.00049315,120]
[337574277,1725831051631,-1133.51,0.00049315,120]
[337574278,1725831051643,-500.0,0.00049315,120]
[337574279,1725831051653,-500.0,0.00049315,120]
[337574280,1725831051662,-500.0,0.00049315,120]
[337574281,1725831051672,-500.0,0.00049315,120]
[337574282,1725831051681,-500.0,0.00049315,120]
[337574283,1725831051691,-500.0,0.00049315,120]